bitfinex-derivatives/quotes_ETHF0:USTF0_20250903
["timestamp","ask_amount","ask_price","bid_price","bid_amount"]
[1756915527883,3.2078,4474.3,4473.6,0.4012]
[1756915528180,3.4119,4474.3,4474.2,0.4012]
[1756915528489,3.7237,4474.3,4474.2,0.7016]
[1756915528684,3.9151,4474.3,4474.2,0.7016]
[1756915528981,3.9151,4474.3,4474.2,0.5023]
[1756915529181,0.3118,4474.1,4473.8,4.30731169]
[1756915529387,0.7073,4474.0,4473.9,0.4319]
[1756915529572,0.7073,4474.0,4473.9,1.87701121]
[1756915529881,3.7237,4474.3,4474.2,0.2019]
[1756915530188,3.9151,4474.3,4474.2,1.64701121]
[1756915530482,3.9151,4474.3,4474.1,0.23]
[1756915530678,3.9151,4474.3,4474.2,1.14471121]
[1756915532178,0.3118,4473.9,4473.8,1.14471121]
[1756915532383,0.7073,4473.9,4473.6,0.23]
[1756915532580,0.3955,4473.7,4473.6,0.23]
[1756915532785,0.7073,4473.7,4473.6,1.37471121]
[1756915533091,0.7073,4473.7,4473.6,1.14471121]
[1756915533280,0.3955,4473.7,4473.3,1.14471121]
[1756915533587,0.3955,4473.7,4473.4,0.23]
[1756915533588,0.8263,4473.5,4473.4,0.23]
[1756915533786,0.8263,4473.5,4472.9,0.3004]
[1756915533987,0.7073,4473.4,4473.3,1.14471121]
[1756915535095,1.26170374,4473.4,4473.3,1.14471121]
[1756915535482,1.26170374,4473.4,4473.0,0.23]
[1756915535483,0.94990374,4473.4,4473.0,0.23]
[1756915535689,0.7073,4473.4,4473.3,1.14471121]
[1756915535887,1.26171906,4473.4,4473.3,1.14471121]
[1756915536182,1.26171906,4473.4,4473.3,1.64701121]
[1756915536381,1.26171906,4473.4,4473.3,1.84631121]
[1756915536690,3.2078,4473.7,4473.4,0.3004]
[1756915536888,3.6033,4473.7,4473.6,1.84631121]
[1756915537088,4.46947169,4473.7,4473.6,1.84631121]
[1756915537288,4.46947169,4473.7,4473.6,1.14471121]
[1756915537493,4.46947169,4473.7,4473.3,1.14471121]
[1756915537494,4.15767169,4473.7,4473.3,1.14471121]
[1756915537695,0.7073,4473.4,4473.3,1.14471121]
[1756915537988,3.2078,4473.7,4473.4,0.3004]
[1756915538184,0.7073,4473.9,4473.8,0.7016]
[1756915538385,0.94978949,4473.9,4473.8,0.7016]
[1756915538583,1.26158949,4473.9,4473.8,1.84631121]
[1756915538783,1.26163398,4473.9,4473.8,1.84631121]
[1756915538985,1.26163398,4473.9,4473.8,1.34661121]
[1756915539189,1.26163398,4473.9,4473.8,1.14471121]
[1756915540186,0.7073,4473.8,4473.7,1.1428]
[1756915540490,1.26132142,4473.8,4473.7,1.1428]
[1756915540685,1.26132142,4473.8,4473.7,1.6451]
[1756915540888,1.26132142,4473.8,4473.7,1.3447]
[1756915541393,1.26132142,4473.8,4473.7,1.6451]
[1756915541585,1.26132142,4473.8,4473.7,1.8444]
[1756915541784,1.26132142,4473.8,4473.7,2.48941121]
[1756915541983,1.26132142,4473.8,4473.7,2.97161121]
[1756915542180,0.3955,4473.8,4473.7,2.97161121]
[1756915542383,0.119,4475.5,4474.0,0.1214]
[1756915542384,3.2078,4474.8,4474.0,0.1214]
[1756915542582,3.8951,4474.8,4474.7,1.14471121]
[1756915543289,3.8951,4474.8,4474.5,0.23]
[1756915543591,3.8951,4474.8,4474.7,1.63901121]
[1756915544691,3.5996,4474.8,4474.0,0.52361]
[1756915544888,0.6873,4474.7,4474.6,1.14471121]
[1756915545597,0.6873,4474.7,4474.6,1.82991121]
[1756915546691,0.1959,4474.7,4474.6,1.82991121]
[1756915549589,0.4914,4475.1,4475.0,0.8066]
[1756915549791,0.6873,4475.1,4475.0,1.82991121]
[1756915550397,0.6873,4475.1,4475.0,1.53861121]
[1756915550698,0.3918,4474.8,4474.7,0.23]
[1756915550894,0.6873,4474.3,4474.2,0.6852]
[1756915551097,0.6873,4474.3,4474.2,2.04991121]
[1756915552090,0.1959,4474.3,4474.2,2.04991121]
[1756915552987,0.1959,4474.3,4474.2,2.05991121]
[1756915553188,0.6873,4474.3,4474.2,2.05991121]
[1756915553397,3.8951,4474.3,4474.2,1.53861121]
[1756915554088,0.6873,4474.3,4474.2,1.53861121]
[1756915554289,3.8951,4474.3,4474.2,1.53861121]
[1756915554502,4.44751023,4474.3,4474.2,1.82991121]
[1756915556306,0.6873,4473.6,4473.5,1.0786]
[1756915556604,1.23984966,4473.6,4473.5,1.0786]
[1756915559813,1.46984966,4473.6,4473.5,1.0786]
[1756915563407,2.61456087,4473.6,4473.5,1.0786]
[1756915563813,1.46984966,4473.6,4473.5,1.0786]
[1756915565510,1.23984966,4473.6,4473.5,1.2816]
[1756915565707,1.46984966,4473.6,4473.5,2.90851121]
[1756915565909,1.46984966,4473.6,4473.5,1.0786]
[1756915568516,1.46984966,4473.6,4473.5,1.2816]
[1756915569314,1.46984966,4473.6,4473.5,1.5729]
[1756915570413,1.46984966,4473.6,4473.5,1.8852]
[1756915570920,1.46984966,4473.6,4473.5,1.2816]
[1756915571614,1.46984966,4473.6,4473.2,0.2913]
[1756915571818,1.46984966,4473.6,4473.0,0.1214]
[1756915571819,0.205,4472.3,4472.2,0.5164]
[1756915572010,3.7231,4472.3,4472.2,0.5164]
[1756915572410,3.7231,4472.3,4472.2,0.3924]
[1756915572917,3.2078,4472.3,4472.2,0.3924]
[1756915573816,3.84,4473.0,4472.9,0.3924]
[1756915574011,4.39166006,4473.0,4472.9,1.76675498]
[1756915574214,3.635,4473.0,4472.9,1.93375498]
[1756915575115,0.6322,4473.0,4472.9,1.76675498]
[1756915575318,0.3103,4473.0,4472.9,1.93375498]
[1756915576023,0.6322,4473.0,4472.9,1.76675498]
[1756915576521,0.8241,4473.0,4472.9,0.2006]
[1756915577217,0.3103,4472.9,4472.6,0.23]
[1756915577420,3.915,4472.7,4472.6,0.4306]
[1756915577714,0.7072,4472.6,4472.5,1.1531]
[1756915578119,1.25913399,4472.6,4472.5,1.1531]
[1756915579324,0.5153,4472.2,4472.1,0.6224]
[1756915579624,0.7072,4472.2,4472.1,0.6224]
[1756915579922,0.7072,4472.2,4472.1,0.3924]
[1756915580520,0.8241,4472.0,4471.9,0.4306]
[1756915580717,0.8241,4472.0,4471.9,0.2006]
[1756915580919,0.3969,4471.8,4471.7,1.0712]
[1756915581119,0.7072,4471.8,4471.7,1.0712]
[1756915581420,1.25953537,4471.8,4471.7,1e-08]
[1756915581923,5.25953537,4471.8,4471.7,1e-08]
[1756915582310,0.1169,4471.0,4470.8,1.37435498]
[1756915582516,0.8241,4471.0,4470.9,0.2006]
[1756915583313,0.8241,4471.0,4470.9,0.3924]
[1756915583513,0.8241,4471.0,4470.9,0.2006]
[1756915584618,0.7072,4470.7,4470.6,1.1988]
[1756915584817,0.7072,4470.7,4470.6,1.3994]
[1756915585018,0.5153,4470.7,4470.6,1.5912]
[1756915585323,0.7072,4470.7,4470.6,1.5912]
[1756915586625,0.7072,4470.7,4470.6,0.3924]
[1756915586823,0.7072,4470.7,4470.6,0.5594]
[1756915586824,0.3103,4470.7,4470.6,0.5594]
[1756915587223,0.5153,4470.7,4470.6,0.3924]
[1756915587514,0.3103,4470.9,4470.8,0.5594]
[1756915587724,0.7072,4470.9,4470.8,0.3924]
[1756915588023,0.5153,4470.9,4470.8,0.3924]
[1756915588225,0.5138,4470.5,4470.4,1.57495498]
[1756915588424,0.5138,4470.5,4470.2,0.8583]
[1756915588625,0.5138,4470.5,4470.2,2.23265498]
[1756915588926,0.7072,4470.3,4470.2,2.62505498]
[1756915589127,0.7072,4470.3,4470.2,1.37435498]
[1756915589522,0.7072,4470.3,4470.2,1.57495498]
[1756915590120,0.7072,4470.3,4469.6,35.5818]
[1756915590320,3.6047,4470.2,4469.6,3.2078]
[1756915590520,0.3103,4469.9,4469.2,1.37435498]
[1756915590829,0.7072,4469.8,4469.7,0.9687]
[1756915592023,0.7072,4469.8,4469.7,1.1693]
[1756915593027,0.7072,4469.8,4469.7,0.2006]
[1756915593528,0.1169,4470.0,4469.8,0.167]
[1756915593529,0.4272,4470.0,4469.8,0.167]
[1756915593730,3.2078,4470.2,4470.1,0.3924]
[1756915593925,3.5181,4470.2,4470.1,0.5594]
[1756915594123,3.915,4470.2,4470.1,0.3924]
[1756915594319,3.5181,4470.2,4470.1,0.3924]
[1756915594519,0.4272,4470.5,4470.2,0.167]
[1756915594729,0.4272,4470.5,4470.4,0.5594]
[1756915595131,0.8241,4470.5,4470.4,0.3924]
[1756915595520,0.1169,4470.5,4470.3,0.2006]
[1756915595736,0.7072,4470.4,4470.3,0.3924]
[1756915596326,0.3103,4470.4,4470.3,0.96196]
[1756915596530,0.1169,4470.5,4470.3,0.96196]
[1756915596730,3.5181,4470.7,4470.5,0.40254]
[1756915596931,3.2078,4470.7,4470.6,0.5594]
[1756915597130,3.5181,4470.7,4470.6,0.5594]
[1756915597431,3.7231,4470.7,4470.6,0.5594]
[1756915597832,3.5181,4470.7,4470.6,0.5594]
[1756915598525,0.5153,4470.9,4470.8,0.3924]
[1756915598729,0.3103,4470.9,4470.8,0.5594]
[1756915598928,0.5,4471.0,4470.8,4.6224]
[1756915599235,0.3103,4471.7,4471.4,0.40245]
[1756915599530,0.3103,4471.7,4471.5,0.23]
[1756915599739,3.5181,4472.3,4471.6,4.4566871]
[1756915599931,3.7231,4472.3,4471.6,4.4566871]
[1756915600433,0.4272,4472.5,4472.1,0.40239]
[1756915600630,0.3103,4472.5,4472.2,0.63238]
[1756915600828,0.3103,4472.7,4472.2,4.6866871]
[1756915601138,3.4128,4472.8,4472.3,0.40237]
[1756915601335,0.1169,4472.5,4472.4,0.23]
[1756915601635,0.4272,4472.5,4472.4,0.23]
[1756915602032,0.4272,4472.5,4471.9,0.4024]
[1756915602033,0.2087,4472.4,4471.9,0.4024]
[1756915602227,0.1207,4472.0,4471.9,0.4024]
[1756915602436,0.4259,4472.0,4471.9,0.6324]
[1756915602829,0.3294,4472.0,4471.9,0.23]
[1756915603039,0.6346,4472.0,4471.9,0.23]
[1756915603240,0.4259,4472.0,4471.9,0.23]
[1756915603537,0.6346,4472.0,4471.9,0.23]
[1756915604141,0.4259,4472.0,4471.9,0.23]
[1756915604332,0.3052,4472.4,4471.9,0.63241]
[1756915604537,0.2087,4472.1,4472.0,0.23]
[1756915604726,0.2087,4471.9,4471.6,4.4566871]
[1756915604926,0.7185,4471.8,4471.7,0.23]
[1756915605633,0.7185,4471.4,4471.3,3.2078]
[1756915605833,0.3294,4471.0,4470.8,3.2078]
[1756915606037,0.3052,4470.9,4470.8,3.2078]
[1756915606237,0.3052,4470.9,4470.8,3.4378]
[1756915607437,0.4259,4471.5,4470.9,0.4025]
[1756915607631,0.1207,4471.5,4471.0,4.4566871]
[1756915607838,0.2087,4471.2,4471.1,0.23]
[1756915608036,0.3052,4471.2,4471.1,0.23]
[1756915608742,0.5139,4471.2,4471.1,0.23]
[1756915609643,0.1207,4471.0,4470.8,3.2078]
[1756915609843,0.3052,4470.8,4470.5,4.8592271]
[1756915610037,0.5139,4470.7,4470.6,0.23]
[1756915610247,0.2087,4470.7,4470.5,4.8592271]
[1756915610446,0.3052,4470.6,4470.5,4.8592271]
[1756915610640,0.3052,4470.6,4470.5,5.0892271]
[1756915610840,0.3052,4470.9,4470.5,4.8592271]
[1756915611141,0.2087,4470.9,4470.6,0.23]
[1756915611337,0.3052,4470.7,4470.6,0.23]
[1756915612441,0.3294,4471.0,4470.6,0.23]
[1756915612638,0.3052,4470.9,4470.6,0.23]
[1756915613239,0.3052,4470.9,4470.6,0.63253]
[1756915613444,0.3052,4470.9,4470.6,0.23]
[1756915613645,0.2087,4470.9,4470.6,0.23]
[1756915613952,0.3052,4470.9,4470.6,0.63253]
[1756915614645,0.3052,4471.4,4470.7,3.2078]
[1756915614848,0.3052,4471.4,4471.3,4.4566871]
[1756915615047,0.5139,4471.4,4471.3,4.4566871]
[1756915615246,0.7185,4471.4,4471.3,4.4566871]
[1756915615447,0.7185,4471.4,4471.3,4.6866871]
[1756915615846,0.3052,4471.4,4471.3,4.6866871]
[1756915618046,0.3052,4471.4,4471.3,4.6366871]
[1756915618747,0.7185,4471.4,4471.3,4.6366871]
[1756915618937,0.3052,4471.3,4471.1,0.764]
[1756915619140,0.7185,4471.3,4471.2,0.23]
[1756915619342,0.3052,4471.2,4471.1,0.764]
[1756915619643,0.7185,4471.2,4471.1,0.994]
[1756915620237,0.3052,4471.4,4471.2,0.40247]
[1756915620439,0.3052,4471.8,4471.3,0.23]
[1756915620651,0.3052,4471.9,4471.8,0.40242]
[1756915620946,0.5139,4471.9,4471.8,0.63242]
[1756915621243,0.3052,4472.3,4471.9,0.40241]
[1756915621547,0.5139,4472.3,4471.9,0.40241]
[1756915621746,3.3247,4472.5,4472.0,0.23]
[1756915621747,0.3052,4472.4,4472.0,0.23]
[1756915622047,3.5334,4472.5,4472.4,0.40237]
[1756915622048,0.1169,4472.5,4472.4,0.40237]
[1756915622240,0.3052,4472.8,4472.7,0.40234]
[1756915622439,0.3052,4472.8,4472.7,0.63234]
[1756915623446,0.3052,4472.8,4472.7,0.23]
[1756915624348,0.1207,4473.5,4472.8,0.40233]
[1756915624549,0.3052,4472.9,4472.8,0.40233]
[1756915624738,0.5139,4472.9,4472.8,0.63233]
[1756915624940,0.3052,4472.9,4472.8,0.63233]
[1756915625246,0.3052,4472.9,4472.8,0.23]
[1756915626542,3.2078,4474.2,4473.6,0.3042]
[1756915626757,3.9263,4474.2,4473.7,0.23]
[1756915627045,0.7185,4473.8,4473.7,0.4242]
[1756915627644,0.7185,4473.8,4473.7,0.6138]
[1756915628346,0.534,4473.5,4473.4,0.1942]
[1756915628541,0.534,4473.5,4473.4,0.4242]
[1756915628944,0.8392,4473.5,4473.4,0.4242]
[1756915629144,0.8392,4473.5,4472.9,4.6508871]
[1756915629145,0.8392,4473.0,4472.9,4.6508871]
[1756915629347,0.8392,4473.0,4472.9,5.05582816]
[1756915629540,0.5139,4473.0,4472.9,5.95194816]
[1756915629869,0.3052,4473.0,4472.9,5.95194816]
[1756915630053,0.3052,4473.0,4472.9,5.72194816]
[1756915630254,0.5139,4473.0,4472.9,5.95194816]
[1756915630449,0.8392,4473.0,4472.9,5.64774816]
[1756915630649,0.8392,4473.0,4472.9,0.4242]
[1756915630948,0.8392,4473.0,4472.5,4.4566871]
[1756915630949,0.3052,4472.9,4472.5,4.4566871]
[1756915631263,0.7185,4472.9,4472.8,0.4242]
[1756915631848,0.7185,4472.9,4472.8,0.1942]
[1756915632154,0.7083,4472.9,4472.8,0.23]
[1756915632555,0.295,4472.8,4472.5,4.8590471]
[1756915632754,0.295,4472.8,4472.7,3.6391]
[1756915633064,0.7117,4472.8,4472.7,3.6391]
[1756915633247,0.7117,4472.8,4472.7,3.8316]
[1756915633446,0.295,4473.4,4472.8,0.2842]
[1756915633642,0.7117,4472.9,4472.8,0.3938]
[1756915633850,0.7117,4472.9,4472.8,0.6238]
[1756915635055,0.7117,4472.9,4472.8,0.4313]
[1756915636748,0.8324,4473.5,4473.4,0.2013]
[1756915636949,0.8324,4473.5,4473.4,0.4313]
[1756915637260,0.5027,4473.6,4473.5,0.2842]
[1756915637449,0.7117,4473.6,4473.5,0.6238]
[1756915637651,0.7117,4473.6,4473.5,0.2013]
[1756915637957,0.7117,4473.6,4473.5,0.4313]
[1756915638175,0.295,4473.6,4473.5,1.31027]
[1756915638745,0.5027,4473.6,4473.5,0.908]
[1756915638950,0.7117,4473.6,4473.5,0.6238]
[1756915640550,0.8357,4473.5,4473.4,4.00735996]
[1756915640755,0.8357,4473.5,4473.4,4.23735996]
[1756915640954,0.124,4473.0,4472.8,4.00735996]
[1756915641269,0.7117,4472.9,4472.8,4.20865996]
[1756915641557,0.7117,4472.9,4472.8,4.63115996]
[1756915641850,0.7117,4472.9,4472.8,4.91535996]
[1756915642259,0.5407,4473.5,4473.4,0.2013]
[1756915642451,0.5407,4473.5,4473.4,0.4313]
[1756915642851,0.8357,4473.5,4473.4,0.4313]
[1756915643753,0.8357,4473.5,4473.4,0.908]
[1756915644149,0.295,4473.4,4473.3,4.00735996]
[1756915644352,0.295,4473.4,4473.3,4.71405996]
[1756915644549,0.5027,4473.4,4473.3,4.91535996]
[1756915644951,0.295,4473.6,4473.5,0.3938]
[1756915645156,0.295,4473.6,4473.5,0.908]
[1756915645360,0.7117,4473.6,4473.5,0.6238]
[1756915645553,0.7117,4473.6,4473.5,0.678]
[1756915645747,0.7117,4473.6,4473.5,0.908]
[1756915646460,0.5027,4473.6,4473.5,0.908]
[1756915646663,0.7117,4473.7,4473.6,0.3938]
[1756915646957,0.124,4473.5,4473.3,4.00735996]
[1756915647256,0.7117,4472.8,4472.7,7.41645996]
[1756915647463,0.295,4472.8,4472.7,8.12315996]
[1756915647654,0.8357,4473.5,4473.4,0.2013]
[1756915647849,0.8357,4473.5,4473.4,4.00735996]
[1756915648054,0.8357,4473.5,4473.4,4.23735996]
[1756915648254,0.124,4473.0,4472.7,3.2078]
[1756915648455,0.8357,4473.0,4472.9,4.20865996]
[1756915648653,0.8357,4473.0,4472.9,4.40115996]
[1756915649261,0.8357,4473.0,4472.9,4.00735996]
[1756915649453,0.8357,4473.0,4472.9,4.43865996]
[1756915649657,0.6267,4473.0,4472.9,4.63115996]
[1756915650160,0.419,4473.5,4473.0,0.2842]
[1756915650363,0.5407,4473.5,4473.4,4.00735996]
[1756915650560,0.5407,4473.5,4473.4,4.23735996]
[1756915650752,1.09522853,4473.5,4472.8,1.3636]
[1756915650956,0.5407,4473.5,4473.3,4.00735996]
[1756915651158,0.8357,4473.5,4473.4,0.23]
[1756915651365,1.38077303,4473.5,4473.4,0.23]
[1756915651767,0.8357,4473.0,4472.9,0.678]
[1756915651968,0.8357,4473.0,4472.9,4.91535996]
[1756915652860,0.8357,4473.0,4472.9,4.63115996]
[1756915653161,0.7117,4472.9,4472.8,1.0794]
[1756915653355,1.25691878,4472.9,4472.8,1.0794]
[1756915653758,1.25691878,4472.9,4472.8,0.7656]
[1756915653958,1.25691878,4472.9,4472.6,1.3124]
[1756915653959,0.295,4472.8,4472.6,1.3124]
[1756915654159,0.7117,4472.7,4472.6,1.7979]
[1756915654362,0.4167,4472.7,4472.6,5.99775996]
[1756915654765,0.7117,4472.7,4472.6,5.99775996]
[1756915655163,0.7117,4472.7,4472.6,5.76775996]
[1756915655560,0.7117,4472.7,4472.6,5.99775996]
[1756915658171,0.2077,4472.7,4472.6,5.99775996]
[1756915658974,3.4155,4473.2,4473.1,0.678]
[1756915659170,3.2078,4473.2,4473.1,4.91535996]
[1756915659365,3.4155,4473.2,4473.1,4.91535996]
[1756915659563,3.7105,4473.2,4473.1,4.91535996]
[1756915660068,0.2077,4473.2,4473.1,4.91535996]
[1756915660272,3.2078,4473.9,4473.7,0.4855]
[1756915660273,0.7117,4473.8,4473.7,0.4855]
[1756915660473,1.25681691,4473.8,4473.7,0.2013]
[1756915660868,1.25681691,4473.8,4473.6,0.23]
[1756915661064,1.25681691,4473.7,4473.6,0.23]
[1756915661670,1.25681691,4473.7,4473.5,0.23]
[1756915661872,3.2078,4473.9,4473.5,0.23]
[1756915661873,1.22411691,4473.6,4473.5,0.23]
[1756915662073,1.22411691,4473.6,4473.5,0.4299]
[1756915663077,1.22411691,4473.6,4473.5,0.9294]
[1756915663470,1.22411691,4473.6,4473.5,1.14487819]
[1756915666277,1.22411691,4473.6,4473.5,1.34477819]
[1756915667378,1.22411691,4473.6,4473.5,1.14487819]
[1756915668181,1.22411691,4473.6,4473.5,1.34477819]
[1756915669580,1.22411691,4473.6,4473.5,1.84427819]
[1756915670882,1.22411691,4473.6,4473.5,1.14487819]
[1756915673175,1.22411691,4473.6,4473.5,1.34477819]
[1756915673381,1.22411691,4473.6,4473.5,1.84427819]
[1756915673580,1.22411691,4473.6,4473.5,1.34477819]
[1756915674080,0.54511691,4473.6,4473.5,1.96257819]
[1756915674289,0.1207,4474.5,4474.3,0.1999]
[1756915674290,3.4142,4474.4,4474.3,0.1999]
[1756915674477,4.43217963,4474.4,4474.3,1.84427819]
[1756915674684,3.95957963,4474.4,4474.3,1.84427819]
[1756915674978,3.95957963,4474.4,4474.3,2.07427819]
[1756915674979,3.75317963,4474.4,4474.3,2.07427819]
[1756915675285,3.2078,4474.4,4474.3,2.07427819]
[1756915676677,0.2064,4474.4,4474.3,0.6994]
[1756915676879,0.4899,4474.4,4474.3,2.07427819]
[1756915677177,0.679,4474.4,4474.3,1.84427819]
[1756915677581,0.679,4474.4,4474.3,2.07427819]
[1756915679575,0.3955,4474.4,4474.3,2.07427819]
[1756915680278,0.2064,4474.4,4474.3,2.07427819]
[1756915680478,3.2078,4475.0,4474.9,0.409]
[1756915680783,1.22352028,4475.0,4474.9,1.84427819]
[1756915680979,1.33772028,4475.0,4474.9,1.84427819]
[1756915681386,4.54552028,4475.0,4474.9,1.84427819]
[1756915682382,4.43132028,4475.0,4474.9,1.84427819]
[1756915682977,4.61057202,4475.0,4474.9,1.84427819]
[1756915683483,4.72477202,4475.0,4474.9,1.34477819]
[1756915684088,4.72477202,4475.0,4474.9,1.84427819]
[1756915684089,4.61057202,4475.0,4474.9,1.84427819]
[1756915684286,4.32707202,4475.0,4474.9,1.84427819]
[1756915684586,0.57475174,4475.0,4474.9,1.84427819]
[1756915685378,0.38565174,4475.0,4474.9,1.84427819]
[1756915686084,0.66915174,4475.0,4474.9,1.84427819]
[1756915686286,0.85825174,4475.0,4474.9,1.84427819]
[1756915687590,0.38565174,4475.0,4474.9,1.84427819]
[1756915688090,0.66915174,4475.0,4474.9,1.84427819]
[1756915688889,0.85815891,4475.0,4474.9,1.84427819]
[1756915690587,0.3955,4474.8,4474.7,0.7939]
[1756915690780,0.85815891,4474.8,4474.7,0.7939]
[1756915691380,0.85815891,4474.8,4474.7,1.4933]
[1756915691793,0.17915891,4474.8,4474.7,1.4933]
[1756915691992,0.17915891,4474.8,4474.7,1.7233]
[1756915692381,0.37165891,4474.8,4474.7,1.7233]
[1756915693484,0.17915891,4474.8,4474.7,1.7233]
[1756915695493,0.17915891,4474.8,4474.7,3.09623464]
[1756915695892,0.17917638,4475.3,4474.7,3.09623464]
[1756915696093,1.22268261,4475.2,4475.1,0.3868]
[1756915696400,1.42028261,4475.2,4475.1,0.6746]
[1756915697294,1.42028261,4475.2,4475.1,0.1958]
[1756915697490,0.6945,4475.1,4474.8,0.2878]
[1756915697690,0.6945,4474.9,4474.8,1.56873464]
[1756915697892,0.3044,4474.8,4474.7,0.7939]
[1756915698198,1.09714638,4474.8,4474.7,0.7939]
[1756915698494,1.42039019,4474.8,4474.7,0.7939]
[1756915700793,1.65039019,4474.8,4474.7,0.7939]
[1756915701091,0.6945,4474.1,4474.0,1.37293464]
[1756915701298,0.87367638,4474.1,4474.0,1.37293464]
[1756915701698,1.42089436,4474.1,4474.0,1.37293464]
[1756915701893,1.42089436,4474.1,4474.0,1.85653464]
[1756915702299,1.42089436,4474.1,4474.0,1.56873464]
[1756915704194,1.42089436,4474.1,4473.6,1.37293464]
[1756915704498,1.42089436,4474.1,4473.4,1.0857]
[1756915704499,0.812,4473.5,4473.4,0.1958]
[1756915704696,0.99117638,4473.5,4473.4,0.1958]
[1756915705202,1.53837775,4473.5,4473.1,0.2878]
[1756915705497,0.6945,4473.2,4473.1,0.4836]
[1756915705702,0.37167638,4473.2,4473.1,0.6746]
[1756915706203,0.67607638,4473.2,4473.1,0.6746]
[1756915706599,0.37167638,4473.2,4473.1,0.6746]
[1756915706902,0.37167638,4473.2,4473.1,1.8692]
[1756915707104,0.17917638,4473.2,4473.1,1.8692]
[1756915707306,0.17917638,4473.5,4473.1,1.8692]
[1756915707490,0.17917638,4473.4,4473.2,0.2878]
[1756915707805,0.1925,4473.4,4473.3,0.6746]
[1756915708004,0.37182998,4473.4,4473.3,0.6746]
[1756915708808,0.37182998,4473.4,4473.3,2.04753464]
[1756915709800,0.87372968,4473.4,4473.1,1.1946]
[1756915710006,0.3901,4473.2,4473.1,3.28113464]
[1756915710200,0.87372968,4473.2,4473.1,1.6782]
[1756915710507,4.08152968,4473.2,4473.1,1.6782]
[1756915710801,4.08152968,4473.2,4473.1,1.8692]
[1756915711002,3.38702968,4473.2,4473.1,1.8692]
[1756915711207,0.17922968,4473.2,4473.1,2.0992]
[1756915711409,0.17922968,4473.2,4473.1,6.5015]
[1756915711796,0.17922968,4473.2,4473.1,6.0992]
[1756915712304,3.4003,4473.9,4473.8,0.6746]
[1756915712499,3.57942821,4473.9,4473.8,2.04753464]
[1756915712998,3.88382821,4473.9,4473.8,2.04753464]
[1756915713194,3.57942821,4473.9,4473.8,2.04753464]
[1756915714101,3.38692821,4473.9,4473.8,2.04753464]
[1756915715809,3.57942821,4473.9,4473.8,2.27753464]
[1756915716306,4.08142821,4473.9,4473.8,0.6746]
[1756915716501,0.3901,4473.2,4473.1,1.6782]
[1756915716707,0.87798834,4473.2,4473.1,1.8692]
[1756915717502,0.87798834,4473.2,4473.1,2.0992]
[1756915718708,0.87798834,4473.2,4473.1,1.8692]
[1756915718913,0.87798834,4473.2,4473.1,2.0992]
[1756915719111,0.87798834,4473.2,4473.1,1.8692]
[1756915720010,0.37598834,4473.2,4473.1,1.8692]
[1756915721706,0.18348834,4473.2,4473.1,1.8692]
[1756915722307,0.66238834,4473.2,4473.1,1.8692]
[1756915722611,0.85098834,4473.2,4473.1,1.8692]
[1756915722809,0.85098834,4473.2,4473.1,1.1946]
[1756915723310,1.40139692,4473.2,4473.1,1.1946]
[1756915723807,1.40139692,4473.2,4473.1,1.4002]
[1756915724808,1.40139692,4473.2,4473.1,1.1946]
[1756915725114,1.40139692,4473.2,4473.1,1.897]
[1756915725301,1.40139692,4473.2,4473.1,3.26993464]
[1756915726420,0.92339692,4473.2,4473.1,3.26993464]
[1756915726719,0.18348834,4473.2,4473.1,3.26993464]
[1756915727019,3.4378,4473.4,4473.3,0.4064]
[1756915727332,3.4378,4473.4,4473.3,0.7024]
[1756915728217,3.75899259,4473.4,4473.3,0.7024]
[1756915729025,3.75899259,4473.4,4473.3,0.9324]
[1756915729225,3.75909836,4473.4,4473.3,0.9324]
[1756915729525,3.75909836,4473.4,4473.3,1.9302]
[1756915729713,0.23,4473.8,4473.3,1.9302]
[1756915729918,0.55127657,4473.7,4473.6,0.7024]
[1756915730624,0.74077657,4473.7,4473.6,0.7024]
[1756915730925,1.03017657,4473.7,4473.6,0.7024]
[1756915731126,1.03028843,4473.7,4473.6,0.7024]
[1756915734034,0.74088843,4473.7,4473.6,0.7024]
[1756915734328,1.21888843,4473.7,4473.6,0.7024]
[1756915734533,1.21888843,4473.7,4473.6,0.9314]
[1756915735432,1.21888843,4473.7,4473.6,0.7024]
[1756915735633,1.21888843,4473.7,4473.6,0.9314]
[1756915735830,1.21888843,4473.7,4473.6,0.7024]
[1756915736033,0.6675,4473.6,4473.5,1.37293464]
[1756915736332,1.21888843,4473.6,4473.5,1.37293464]
[1756915736527,0.1164,4473.5,4473.3,0.9978]
[1756915736734,4.42684595,4473.4,4473.3,1.4324]
[1756915737230,4.13744595,4473.4,4473.3,1.6332]
[1756915737434,3.94884595,4473.4,4473.3,1.9292]
[1756915737634,4.42684595,4473.4,4473.3,1.9292]
[1756915738731,3.94884595,4473.4,4473.3,1.9292]
[1756915739033,3.94884595,4473.4,4473.3,1.7002]
[1756915739235,3.94884595,4473.4,4473.3,1.9292]
[1756915740334,3.75934595,4473.4,4473.3,1.9292]
[1756915741439,3.94884595,4473.4,4473.3,1.9292]
[1756915741641,4.23824595,4473.4,4473.3,1.9292]
[1756915742237,4.42684595,4473.4,4473.3,1.7002]
[1756915742638,4.42684595,4473.4,4473.3,1.9292]
[1756915745040,4.42684595,4473.4,4473.3,1.7002]
[1756915745340,4.42684595,4473.4,4473.3,1.9292]
[1756915746242,4.42684595,4473.4,4473.3,1.7002]
[1756915746441,3.75934595,4473.4,4473.3,1.9292]
[1756915746653,4.42684595,4473.4,4473.3,1.7002]
[1756915746839,4.42684595,4473.4,4473.3,1.9292]
[1756915747543,3.94884595,4473.4,4473.3,1.9292]
[1756915747744,4.23824595,4473.4,4473.3,1.9292]
[1756915748838,1.21904595,4473.4,4473.3,1.9292]
[1756915749242,4.42684595,4473.4,4473.3,0.9978]
[1756915749942,4.61537155,4473.4,4473.3,0.9978]
[1756915750443,4.61537947,4473.4,4473.3,0.9978]